Workbook

Sheet 5. 현금흐름표
A1: 5. 현 금 흐 름 표
A3: 제 36(당)기 2010년 1월 1일부터 2010년 12월 31일까지
A4: 제 35(전)기 2009년 1월 1일부터 2009년 12월 31일까지
A6: 한국전력기술주식회사 | K6: (단위:원)
A7: 과 목 | G7: 제 36 (당) 기 | J7: 제 35 (전) 기
G8: 금 액 | J8: 금 액
B10: 영업활동으로 인한 현금흐름 | H10: =G11+G13+G27+G35 -> 54283814996 | K10: =J11+J13+J27+J35 -> 158474875910 | M10: =H10/(('[1]II.재무제표(1,2,3)'!I91+'[1]II.재무제표(1,2,3)'!L91)/2) -> 0.1001936944 | N10: =K10/((495778788617+353145354971)/2) -> 0.3733546209
C11: 당 기 순 이 익 | G11: 141257665360 | J11: 82647799817
C13: 현금의 유출이 없는 비용 등의 가산 | G13: =SUM(G14:G22) -> 45601948593 | J13: =SUM(J14:J22) -> 20483145339
C14: 가. 감가상각비 | G14: 6016092678 | J14: 3337854400
C15: 나. 무형자산상각비 | G15: 1201530839 | J15: 3343186853
C16: 다. 퇴직급여 | G16: 25007591740 | J16: 10269550570
C17: 라. 대손상각비 | G17: 34447632 | J17: 865496753
C18: 마. 외화환산손실 | G18: 57049092 | J18: 42885869
C19: 바. 유형자산처분손실 | G19: 28681000 | J19: 334000
C20: 사. 공사손실충당부채전입액 | G20: 13052791642 | J20: 2562331000
C21: 아. 하자보수비 | G21: 26595440 | J21: 61505894
C22: 자. 통화선도평가손실 | G22: 177168530 | J22: 0
A23: 과 목 | G23: 제 36 (당) 기 | J23: 제 35 (전) 기
G24: 금 액 | J24: 금 액
C25: 카. 잡 손 실
C27: 현금의 유입이 없는 수익 등의 차감 | G27: =SUM(G28:G33)*-1 -> -861309123 | J27: =SUM(J28:J33)*-1 -> -377548049
C28: 가. 외화환산이익 | G28: 112262098 | J28: 60752480
C29: 나. 이자수익 | G29: 688092709 | J29: 0
C30: 다. 투자자산처분이익 | G30: 0 | J30: 200000000
C31: 라. 유형자산처분이익 | G31: 36531181 | J31: 62632372
C32: 마. 대손충당금환입 | G32: 0 | J32: 54163197
C33: 바. 하자보수충당부채환입액 | G33: 24423135 | J33: 0
C35: 영업활동으로 인한 자산, 부채의 변동 | G35: =SUM(G36:G60) -> -131714489834 | J35: =SUM(J36:J60) -> 55721478803
C36: 가. 매출채권의 감소(증가) | G36: -86070782350 | J36: 60198694
C37: 나. 유동성장기매출채권의 감소 | G37: 7351940386 | J37: 0
C38: 다. 미수금의 증가 | G38: -749750112 | J38: -643889456
C39: 라. 미수수익의 감소(증가) | G39: 484199701 | J39: -796604528
C40: 마. 선급금의 감소(증가) | G40: -145816454 | J40: 3374146388
C41: 바. 선급비용의 감소(증가) | G41: 187180788 | J41: -107562119
C42: 사. 선급용역원가의 감소(증가) | G42: -482217694 | J42: 2483277453
C43: 아. 재고자산의 감소 | G43: 2157377125 | J43: 5507681517
C44: 자. 장기성매출채권의 증가 | G44: -8311735170 | J44: -5501350335
C45: 차. 이연법인세자산(비유동)의 증가 | G45: -78424746 | J45: -4045173381
C46: 카. 매입채무의 증가(감소) | G46: 13659604106 | J46: -1160427519
C47: 타. 미지급금의 증가 | G47: 848897550 | J47: 4494356361
C48: 파. 선수금의 증가(감소) | G48: -30265787440 | J48: 40452618283
C49: 하. 예수금의 증가(감소) | G49: -2142715240 | J49: 1926218719
C50: 거. 미지급비용의 증가(감소) | G50: -6959738087 | J50: 6877484659
C51: 너. 미지급법인세의 증가(감소) | G51: -8799965640 | J51: 14206877760
C52: 더. 선수수익의 감소 | G52: -998264 | J52: -3242520
C53: 러. 예수보증금의 증가(감소) | G53: 395074756 | J53: -154600278
C54: 머. 퇴직금의 지급 | G54: -8104496190 | J54: -8490106440
A55: 과 목 | G55: 제 36 (당) 기 | J55: 제 35 (전) 기
G56: 금 액 | J56: 금 액
C57: 저. 퇴직보험예치금의 증가 | G57: -11003534453 | J57: -2168896175
C58: 처. 하자보수충당부채의 증가(감소) | G58: 101721330 | J58: -3755800
C59: 커. 이연법인세부채(유동)의 증가 | G59: 6576087648 | J59: 116742392
C60: 터. 기타의비유동부채의 감소 | G60: -360611384 | J60: -702514872
B61: 투자활동으로 인한 현금흐름 | H61: =G62+G74 -> 8131115560 | K61: =J62+J74 -> -126202443174
C62: 투자활동으로 인한 현금 유입액 | G62: =SUM(G63:G72) -> 52284548860 | J62: =SUM(J63:J72) -> 242711259359
C63: 가. 단기예금의 처분 | G63: 45000000000 | J63: 235960425000
C64: 나. 단기투자자산의 처분 | G64: 285275000 | J64: 0
C65: 다. 단기대여금의 회수 | G65: 3084494547 | J65: 1418076363
C66: 라. 장기투자증권의 처분 | G66: 0 | J66: 426455000
C67: 마. 장기대여금의 회수 | G67: 210288224 | J67: 1966176728
C68: 바. 보증금의 감소 | G68: 3651996908 | J68: 2624907995
C69: 사. 차량운반구의 처분 | G69: 0 | J69: 47545454
C70: 아. 기타의유형자산의 처분 | G70: 38494181 | J70: 18646981
C71: 자. 국고보조금의 수령 | G71: 0 | J71: 9025838
C72: 차. 기타자산의 감소 | G72: 14000000 | J72: 240000000
C74: 투자활동으로 인한 현금 유출액 | G74: =SUM(G75:G87)*-1 -> -44153433300 | J74: =SUM(J75:J87)*-1 -> -368913702533
C75: 가. 단기예금의 취득 | G75: 0 | J75: 215331675000
C76: 나. 장기금융상품의 취득 | G76: 8000000000 | J76: 130000000000
C77: 다. 장기투자증권의 취득 | G77: 106220000 | J77: 119440000
C78: 라. 장기대여금의 대여 | G78: 2363038990 | J78: 10516384830
C79: 마. 보증금의 증가 | G79: 4864377316 | J79: 4747588293
C80: 바. 차량운반구의 취득 | G80: 0 | J80: 291273532
C81: 사. 기타의유형자산의 취득 | G81: 9424400632 | J81: 4094258994
C82: 아. 건설중인자산의 증가 | G82: 18014412126 | J82: 1561952562
C83: 자. 산업재산권의 증가 | G83: 0 | J83: 25278749
C84: 차. 기타의무형자산의 증가 | G84: 1380984236 | J84: 1626153406
C85: 카. 개발비의 증가 | G85: 0 | J85: 72840150
C86: 타. 기타자산의 증가 | G86: 0 | J86: 93513000
C87: 파. 국고보조금의 반환 | G87: 0 | J87: 433344017
A88: 과 목 | G88: 제 36 (당) 기 | J88: 제 35 (전) 기
G89: 금 액 | J89: 금 액
B90: 재무활동으로 인한 현금흐름 | H90: =G91+G94 -> -41315820000 | K90: =J91+J94 -> -8239000000
C91: 재무활동으로 인한 현금 유입액 | G91: =SUM(G92:G92) -> 0 | J91: =SUM(J92:J92) -> 0
C92: 가. 사채의 증가 | G92: 0 | J92: 0
C94: 재무활동으로 인한 현금 유출액 | G94: =SUM(G95:G95)*-1 -> -41315820000 | J94: =SUM(J95:J95)*-1 -> -8239000000
C95: 가. 배당금의 지급 | G95: 41315820000 | J95: 8239000000
B97: 현 금 의 증 가 | H97: =H10+H61+H90 -> 21099110556 | K97: =K10+K61+K90 -> 24033432736
B99: 기 초 의 현 금 | H99: 59994768545 | K99: 35961335809
B101: 기 말 의 현 금 | H101: =H97+H99 -> 81093879101 | K101: =K97+K99 -> 59994768545
A104: 주 : 별첨주석은 본 재무제표의 일부임.
